[Event "44th Chess Olympiad Women 2022"]
[Site "Chennai"]
[Date "2022.07.31"]
[Round "3.49"]
[White "Antonio, Renelsa Taiane"]
[Black "Reifer-Belle, Chanon"]
[Result "1-0"]
[WhiteElo "1471"]
[BlackElo "1213"]
[Annotator "NA"]
[PlyCount "129"]
[EventDate "2022.??.??"]
[TimeControl "60"]

1. e4 {[%emt 0:00:09]} e5 {[%emt 0:00:08]} 2. Nf3 {[%emt 0:01:03]} Nc6 {
[%emt 0:00:12]} 3. Bb5 {[%emt 0:00:45]} a6 {[%emt 0:00:14]} 4. Ba4 {[%emt 0:00:
00]} Nf6 {[%emt 0:00:13]} 5. d3 {[%emt 0:00:36]} b5 {[%emt 0:00:22]} 6. Bb3 {
[%emt 0:00:22]} Be7 {[%emt 0:02:34]} 7. c3 {[%emt 0:01:03]} d6 {[%emt 0:01:30]}
8. h3 {[%emt 0:02:02]} Na5 {[%emt 0:03:34]} 9. Bc2 {[%emt 0:00:39]} c5 {
[%emt 0:01:47]} 10. Nbd2 {[%emt 0:05:27]} O-O {[%emt 0:05:06]} 11. O-O {
[%emt 0:01:19]} Re8 {[%emt 0:02:57]} 12. Re1 {[%emt 0:00:23]} Bf8 {[%emt 0:00:
00]} 13. Nf1 {[%emt 0:02:44]} h6 {[%emt 0:01:32]} 14. Ng3 {[%emt 0:00:20]} Nc6
{[%emt 0:07:57]} 15. Qe2 {[%emt 0:05:29]} Qc7 {[%emt 0:05:14]} 16. Be3 {
[%emt 0:02:44]} Bb7 {[%emt 0:02:55]} 17. Nh2 {[%emt 0:01:02]} Ne7 {[%emt 0:00:
00]} 18. Qf3 {[%emt 0:01:14]} Kh7 {[%emt 0:09:31]} 19. Nf5 {[%emt 0:00:24]}
Nfg8 {[%emt 0:06:26]} 20. Ng4 {[%emt 0:12:04]} Nxf5 {[%emt 0:03:34]} 21. Qxf5+
{[%emt 0:00:14]} g6 {[%emt 0:00:24]} 22. Nf6+ {[%emt 0:06:11]} Nxf6 {[%emt 0:
00:00]} 23. Qxf6 {[%emt 0:00:23]} Bg7 {[%emt 0:03:49]} 24. Qh4 {[%emt 0:00:48]}
Qe7 {[%emt 0:02:14]} 25. Qxe7 {[%emt 0:01:10]} Rxe7 {[%emt 0:00:03]} 26. Kh2 {
[%emt 0:04:42]} Rc8 {[%emt 0:02:22]} 27. g4 {[%emt 0:03:07]} Rcc7 {[%emt 0:00:
00]} 28. a4 {[%emt 0:03:01]} b4 {[%emt 0:01:36]} 29. a5 {[%emt 0:00:28]} Bc8 {
[%emt 0:03:19]} 30. Bb3 {[%emt 0:02:00]} Be6 {[%emt 0:02:24]} 31. Bxe6 {
[%emt 0:01:41]} Rxe6 {[%emt 0:01:33]} 32. cxb4 {[%emt 0:00:22]} cxb4 {[%emt 0:
00:00]} 33. Rec1 {[%emt 0:00:39]} Rd7 {[%emt 0:02:09]} 34. Ra4 {[%emt 0:02:13]}
d5 {[%emt 0:02:15]} 35. Bb6 {[%emt 0:00:45]} Bf8 {[%emt 0:02:23]} 36. Raa1 {
[%emt 0:08:01]} Be7 {[%emt 0:01:52]} 37. Rc2 {[%emt 0:00:31]} Bd8 {[%emt 0:00:
00]} 38. Bxd8 {[%emt 0:04:44]} Rxd8 {[%emt 0:00:06]} 39. Rc7 {[%emt 0:00:06]}
Rf6 {[%emt 0:00:41]} 40. Rc2 {[%emt 0:01:20]} Rf3 {[%emt 0:01:10]} 41. Ra4 {
[%emt 0:35:53]} dxe4 {[%emt 0:32:08]} 42. dxe4 {[%emt 0:00:32]} b3 {[%emt 0:00:
00]} 43. Re2 {[%emt 0:00:18]} Rdd3 {[%emt 0:00:09]} 44. Rb4 {[%emt 0:01:05]}
Rxh3+ {[%emt 0:01:51]} 45. Kg2 {[%emt 0:00:07]} Rh4 {[%emt 0:00:44]} 46. f3 {
[%emt 0:00:13]} f5 {[%emt 0:02:41]} 47. Rb7+ {[%emt 0:00:45]} Kg8 {[%emt 0:00:
00]} 48. exf5 {[%emt 0:00:29]} gxf5 {[%emt 0:00:32]} 49. Rxe5 {[%emt 0:00:42]}
Rd8 {[%emt 0:00:53]} 50. gxf5 {[%emt 0:02:04]} Rc4 {[%emt 0:01:26]} 51. Rxb3 {
[%emt 0:00:52]} Rd2+ {[%emt 0:00:28]} 52. Kg3 {[%emt 0:00:12]} Rcc2 {[%emt 0:
00:00]} 53. Re8+ {[%emt 0:01:03]} Kf7 {[%emt 0:00:15]} 54. Reb8 {[%emt 0:00:37]
} Rg2+ {[%emt 0:00:25]} 55. Kf4 {[%emt 0:00:18]} Rc4+ {[%emt 0:01:49]} 56. Ke3
{[%emt 0:00:20]} Rg5 {[%emt 0:00:20]} 57. R3b7+ {[%emt 0:01:57]} Kf6 {[%emt 0:
00:00]} 58. Rf8+ {[%emt 0:00:35]} Ke5 {[%emt 0:00:07]} 59. f4+ {[%emt 0:00:32]}
Rxf4 {[%emt 0:00:34]} 60. Re7+ {[%emt 0:00:20]} Kd6 {[%emt 0:00:14]} 61. Re6+ {
[%emt 0:00:02]} Kd7 {[%emt 0:01:21]} 62. Kxf4 {[%emt 0:00:21]} Rg2 {[%emt 0:00:
00]} 63. Rf7+ {[%emt 0:00:10]} Kd8 {[%emt 0:00:22]} 64. Rxh6 {[%emt 0:00:49]}
Ke8 {[%emt 0:00:09]} 65. Rb7 {[%emt 0:00:27]} 1-0

[Event "44th Chess Olympiad Women 2022"]
[Site "Chennai"]
[Date "2022.07.31"]
[Round "3.49"]
[White "Blackman, Katrina"]
[Black "Caxita, Esperanca"]
[Result "0-1"]
[WhiteElo "1691"]
[BlackElo "1955"]
[Annotator "NA RC"]
[PlyCount "92"]
[EventDate "2022.??.??"]
[TimeControl "60"]

1. d4 {[%emt 0:00:04]} d5 {[%emt 0:00:28]} 2. Nf3 {[%emt 0:00:38]} Nf6 {
[%emt 0:00:07]} 3. Bf4 {[%emt 0:00:02]} e6 {[%emt 0:00:39]} 4. e3 {[%emt 0:00:
00]} c5 {[%emt 0:00:55]} 5. c3 {[%emt 0:00:02]} Nc6 {[%emt 0:00:23]} 6. Nbd2 {
[%emt 0:00:09]} Bd6 {[%emt 0:00:59]} 7. dxc5 {[%emt 0:02:57]} Bxf4 {[%emt 0:00:
00]} 8. exf4 {[%emt 0:00:20]} Nd7 {[%emt 0:00:23]} 9. Nb3 {[%emt 0:13:02]} Qe7
{[%emt 0:03:47]} 10. Bd3 {[%emt 0:00:51]} Nxc5 {[%emt 0:01:15]} 11. Nxc5 {
[%emt 0:00:36]} Qxc5 {[%emt 0:00:07]} 12. O-O {[%emt 0:00:06]} h6 {[%emt 0:00:
00]} 13. Re1 {[%emt 0:02:55]} O-O {[%emt 0:00:55]} 14. Ne5 {[%emt 0:08:35]}
Nxe5 {[%emt 0:05:23]} 15. fxe5 {[%emt 0:00:11]} f6 {[%emt 0:00:16]} 16. exf6 {
[%emt 0:11:30]} Rxf6 {[%emt 0:00:35]} 17. Re3 {[%emt 0:00:02]} Bd7 {[%emt 0:00:
00]} 18. Rf3 {[%emt 0:04:17]} Raf8 {[%emt 0:01:44]} 19. Rxf6 {[%emt 0:00:08]}
Rxf6 {[%emt 0:00:11]} 20. Qe2 {[%emt 0:00:05]} b6 {[%emt 0:05:13]} 21. Re1 {
[%emt 0:01:27]} e5 {[%emt 0:09:10]} 22. Qe3 {[%emt 0:09:15]} e4 {[%emt 0:01:06]
} 23. Qxc5 {[%emt 0:01:11]} bxc5 {[%emt 0:00:08]} 24. Bc2 {[%emt 0:00:02]} Ra6
{[%emt 0:01:17]} 25. Bb1 {[%emt 0:02:26]} Kf7 {[%emt 0:01:22]} 26. h3 {[%emt 0:
00:00]} Kf6 {[%emt 0:00:37]} 27. c4 {[%emt 0:01:39]} Bc6 {[%emt 0:07:26]} 28.
cxd5 {[%emt 0:01:16]} Bxd5 {[%emt 0:00:20]} 29. b3 {[%emt 0:02:31]} c4 {
[%emt 0:02:55]} 30. bxc4 {[%emt 0:07:02]} Bxc4 {[%emt 0:00:19]} 31. Rxe4 {
[%emt 0:04:16]} Bxa2 {[%emt 0:00:36]} 32. Bxa2 {[%emt 0:00:06]} Rxa2 {[%emt 0:
00:00]} 33. f3 {[%emt 0:00:47]} a5 {[%emt 0:00:18]} 34. Kf1 {[%emt 0:00:02]} a4
{[%emt 0:00:46]} 35. Re8 {[%emt 0:00:11]} a3 {[%emt 0:03:46]} 36. Ra8 {[%emt 0:
00:00]} Ke5 {[%emt 0:01:32]} 37. Ra7 {[%emt 0:01:11]} Kd4 {[%emt 0:02:24]} 38.
Rxg7 {[%emt 0:00:58]} Rc2 {[%emt 0:00:36]} 39. Rd7+ {[%emt 0:04:08]} Ke5 {
[%emt 0:02:09]} 40. Re7+ {[%emt 0:03:25]} Kf6 {[%emt 0:00:57]} 41. Re1 {
[%emt 0:30:19]} a2 {[%emt 0:30:08]} 42. Kg1 {[%emt 0:00:30]} Rb2 {[%emt 0:00:
00]} 43. Kh2 {[%emt 0:00:04]} Rb1 {[%emt 0:00:17]} 44. Re4 {[%emt 0:00:11]}
a1=Q {[%emt 0:00:19]} 45. Kg3 {[%emt 0:01:06]} Rb2 {[%emt 0:04:00]} 46. Rh4 {
[%emt 0:04:13]} Qe1+ {[%emt 0:02:19]} 0-1

[Event "44th Chess Olympiad Women 2022"]
[Site "Chennai"]
[Date "2022.07.31"]
[Round "3.49"]
[White "Eversley, Kiarra"]
[Black "Pires, Luzia"]
[Result "0-1"]
[WhiteElo "1356"]
[BlackElo "1842"]
[Annotator "NA"]
[PlyCount "147"]
[EventDate "2022.??.??"]
[TimeControl "60"]

1. e4 {[%emt 0:00:03]} c5 {[%emt 0:05:10]} 2. Nf3 {[%emt 0:00:10]} d6 {[%emt 0:
00:00]} 3. d4 {[%emt 0:00:23]} cxd4 {[%emt 0:00:12]} 4. Nxd4 {[%emt 0:00:12]}
Nf6 {[%emt 0:00:15]} 5. Nc3 {[%emt 0:00:33]} g6 {[%emt 0:00:14]} 6. Be2 {
[%emt 0:03:15]} Bg7 {[%emt 0:00:18]} 7. Be3 {[%emt 0:00:34]} Nc6 {[%emt 0:00:
00]} 8. Qd2 {[%emt 0:00:46]} Nxd4 {[%emt 0:01:04]} 9. Bxd4 {[%emt 0:00:20]} Bd7
{[%emt 0:01:05]} 10. f3 {[%emt 0:01:27]} a6 {[%emt 0:00:50]} 11. Be3 {[%emt 0:
00:00]} h5 {[%emt 0:03:37]} 12. O-O-O {[%emt 0:01:48]} b5 {[%emt 0:01:02]} 13.
Nd5 {[%emt 0:01:01]} Nxd5 {[%emt 0:00:34]} 14. exd5 {[%emt 0:00:54]} a5 {
[%emt 0:20:35]} 15. Rhe1 {[%emt 0:00:21]} b4 {[%emt 0:00:47]} 16. Kb1 {[%emt 0:
00:00]} O-O {[%emt 0:05:23]} 17. g4 {[%emt 0:01:07]} hxg4 {[%emt 0:00:45]} 18.
fxg4 {[%emt 0:00:06]} a4 {[%emt 0:00:10]} 19. Bh6 {[%emt 0:00:21]} b3 {[%emt 0:
00:00]} 20. cxb3 {[%emt 0:01:25]} axb3 {[%emt 0:01:30]} 21. a3 {[%emt 0:00:08]}
Qa5 {[%emt 0:08:12]} 22. Bxg7 {[%emt 0:06:13]} Qxd2 {[%emt 0:00:38]} 23. Rxd2 {
[%emt 0:00:03]} Kxg7 {[%emt 0:00:14]} 24. g5 {[%emt 0:00:27]} Rfb8 {[%emt 0:00:
00]} 25. Bc4 {[%emt 0:00:50]} Kf8 {[%emt 0:01:18]} 26. Re3 {[%emt 0:01:31]}
Bf5+ {[%emt 0:00:49]} 27. Bd3 {[%emt 0:00:35]} Bd7 {[%emt 0:00:59]} 28. Rf2 {
[%emt 0:02:28]} Ra5 {[%emt 0:05:50]} 29. Bc4 {[%emt 0:10:42]} Bf5+ {[%emt 0:00:
00]} 30. Kc1 {[%emt 0:06:18]} Rc5 {[%emt 0:05:42]} 31. Rc3 {[%emt 0:01:27]} Be4
{[%emt 0:03:14]} 32. Rd2 {[%emt 0:01:50]} e6 {[%emt 0:04:27]} 33. dxe6 {
[%emt 0:01:21]} d5 {[%emt 0:00:18]} 34. e7+ {[%emt 0:07:58]} Kxe7 {[%emt 0:00:
00]} 35. Bf1 {[%emt 0:06:14]} Rbc8 {[%emt 0:06:12]} 36. Rxc5 {[%emt 0:00:35]}
Rxc5+ {[%emt 0:00:02]} 37. Kd1 {[%emt 0:00:05]} f6 {[%emt 0:01:21]} 38. gxf6+ {
[%emt 0:00:06]} Kxf6 {[%emt 0:00:10]} 39. Bg2 {[%emt 0:01:34]} Bc2+ {[%emt 0:
00:00]} 40. Ke1 {[%emt 0:03:18]} Ke5 {[%emt 0:01:52]} 41. Kf2 {[%emt 0:33:40]}
d4 {[%emt 0:32:42]} 42. Bf1 {[%emt 0:01:58]} Ke4 {[%emt 0:00:19]} 43. Bg2+ {
[%emt 0:00:11]} Ke5 {[%emt 0:00:25]} 44. Bf1 {[%emt 0:00:13]} Rc7 {[%emt 0:00:
00]} 45. Re2+ {[%emt 0:00:27]} Kd5 {[%emt 0:03:29]} 46. Bg2+ {[%emt 0:00:34]}
Kc4 {[%emt 0:00:22]} 47. Rd2 {[%emt 0:01:35]} Rf7+ {[%emt 0:02:38]} 48. Ke1 {
[%emt 0:00:21]} Ra7 {[%emt 0:01:19]} 49. Bf1+ {[%emt 0:00:41]} Kc5 {[%emt 0:00:
00]} 50. Bd3 {[%emt 0:00:13]} Bxd3 {[%emt 0:00:11]} 51. Rxd3 {[%emt 0:00:05]}
Kc4 {[%emt 0:00:05]} 52. Rg3 {[%emt 0:03:32]} Rxa3 {[%emt 0:01:20]} 53. Rxg6 {
[%emt 0:00:08]} Ra2 {[%emt 0:00:50]} 54. Rg2 {[%emt 0:00:21]} Kd3 {[%emt 0:00:
00]} 55. Rd2+ {[%emt 0:00:41]} Ke3 {[%emt 0:00:21]} 56. Re2+ {[%emt 0:01:00]}
Kf3 {[%emt 0:01:17]} 57. Rf2+ {[%emt 0:00:19]} Ke4 {[%emt 0:00:07]} 58. Re2+ {
[%emt 0:00:34]} Kd5 {[%emt 0:00:29]} 59. Rd2 {[%emt 0:00:48]} Ra1+ {[%emt 0:00:
00]} 60. Rd1 {[%emt 0:00:27]} Ra7 {[%emt 0:00:19]} 61. Ke2 {[%emt 0:01:07]} Rh7
{[%emt 0:00:29]} 62. Rh1 {[%emt 0:00:19]} Rh3 {[%emt 0:00:20]} 63. Kf2 {
[%emt 0:00:55]} d3 {[%emt 0:00:42]} 64. Kg2 {[%emt 0:00:06]} Re3 {[%emt 0:00:
00]} 65. h4 {[%emt 0:00:10]} Re2+ {[%emt 0:00:15]} 66. Kf3 {[%emt 0:00:11]}
Rxb2 {[%emt 0:00:04]} 67. h5 {[%emt 0:00:04]} Ra2 {[%emt 0:00:44]} 68. Ke3 {
[%emt 0:00:50]} Kc4 {[%emt 0:00:13]} 69. h6 {[%emt 0:00:14]} b2 {[%emt 0:00:59]
} 70. h7 {[%emt 0:00:29]} Ra8 {[%emt 0:00:10]} 71. Kd2 {[%emt 0:00:31]} Rh8 {
[%emt 0:00:03]} 72. Rb1 {[%emt 0:01:30]} Rxh7 {[%emt 0:00:10]} 73. Rxb2 {
[%emt 0:00:03]} Rh2+ {[%emt 0:00:05]} 74. Kc1 {[%emt 0:00:02]} 0-1

[Event "44th Chess Olympiad Women 2022"]
[Site "Chennai"]
[Date "2022.07.31"]
[Round "3.49"]
[White "Junior, Ednasia"]
[Black "Wilson, Hannah"]
[Result "1-0"]
[WhiteElo "1849"]
[BlackElo "1556"]
[Annotator "NA RC"]
[PlyCount "52"]
[EventDate "2022.??.??"]
[TimeControl "60"]

1. c4 {[%emt 0:03:02]} c6 {[%emt 0:00:15]} 2. Nc3 {[%emt 0:00:10]} d5 {[%emt 0:
00:00]} 3. d4 {[%emt 0:01:14]} Nf6 {[%emt 0:00:43]} 4. Bf4 {[%emt 0:00:36]} Bf5
{[%emt 0:03:20]} 5. e3 {[%emt 0:02:59]} e6 {[%emt 0:01:01]} 6. Nf3 {[%emt 0:00:
00]} Bd6 {[%emt 0:02:05]} 7. Ne5 {[%emt 0:03:06]} O-O {[%emt 0:04:22]} 8. g4 {
[%emt 0:06:07]} Bxe5 {[%emt 0:12:58]} 9. dxe5 {[%emt 0:02:09]} Nxg4 {[%emt 0:
00:00]} 10. h3 {[%emt 0:10:54]} Nh6 {[%emt 0:03:07]} 11. Bxh6 {[%emt 0:05:33]}
gxh6 {[%emt 0:01:29]} 12. Rg1+ {[%emt 0:08:42]} Bg6 {[%emt 0:08:33]} 13. Qh5 {
[%emt 0:01:54]} Qc7 {[%emt 0:02:29]} 14. Qxh6 {[%emt 0:08:01]} Qxe5 {[%emt 0:
00:00]} 15. O-O-O {[%emt 0:06:11]} Na6 {[%emt 0:04:56]} 16. h4 {[%emt 0:12:45]}
Kh8 {[%emt 0:02:29]} 17. Be2 {[%emt 0:10:39]} Rg8 {[%emt 0:15:25]} 18. Rg3 {
[%emt 0:03:15]} Qg7 {[%emt 0:02:17]} 19. Qf4 {[%emt 0:00:41]} Qf8 {[%emt 0:00:
00]} 20. Rdg1 {[%emt 0:01:53]} Qe7 {[%emt 0:00:37]} 21. Qh6 {[%emt 0:03:12]}
Qf8 {[%emt 0:01:09]} 22. Qf4 {[%emt 0:00:54]} Qe7 {[%emt 0:00:22]} 23. h5 {
[%emt 0:01:53]} Bf5 {[%emt 0:00:36]} 24. f3 {[%emt 0:00:54]} Nc5 {[%emt 0:00:
00]} 25. e4 {[%emt 0:01:27]} dxc4 {[%emt 0:00:34]} 26. exf5 {[%emt 0:00:20]} e5
{[%emt 0:00:00]} 1-0

[Event "44th Chess Olympiad Women 2022"]
[Site "Chennai"]
[Date "2022.07.31"]
[Round "3.50"]
[White "Caku, Kler"]
[Black "Mejia, Camila"]
[Result "1-0"]
[WhiteElo "1626"]
[BlackElo "1330"]
[Annotator "NA RC"]
[PlyCount "51"]
[EventDate "2022.??.??"]
[TimeControl "60"]

1. e4 {[%emt 0:00:03]} e5 {[%emt 0:00:08]} 2. Nf3 {[%emt 0:00:05]} Nc6 {
[%emt 0:00:15]} 3. d4 {[%emt 0:00:13]} exd4 {[%emt 0:00:17]} 4. Nxd4 {[%emt 0:
00:00]} Nxd4 {[%emt 0:00:18]} 5. Qxd4 {[%emt 0:00:10]} d6 {[%emt 0:00:17]} 6.
Bc4 {[%emt 0:00:29]} Be6 {[%emt 0:00:44]} 7. Nc3 {[%emt 0:02:28]} Nf6 {[%emt 0:
00:00]} 8. Bf4 {[%emt 0:02:32]} Be7 {[%emt 0:01:29]} 9. O-O-O {[%emt 0:05:49]}
O-O {[%emt 0:05:51]} 10. f3 {[%emt 0:08:17]} a6 {[%emt 0:06:03]} 11. Bxe6 {
[%emt 0:11:28]} fxe6 {[%emt 0:02:06]} 12. Qc4 {[%emt 0:02:33]} Qd7 {[%emt 0:00:
00]} 13. e5 {[%emt 0:10:05]} Ne8 {[%emt 0:05:39]} 14. exd6 {[%emt 0:04:25]}
cxd6 {[%emt 0:01:01]} 15. Rhe1 {[%emt 0:06:41]} d5 {[%emt 0:10:28]} 16. Nxd5 {
[%emt 0:17:25]} exd5 {[%emt 0:05:31]} 17. Rxd5 {[%emt 0:00:52]} Qc6 {[%emt 0:
00:00]} 18. Rc5+ {[%emt 0:01:01]} Kh8 {[%emt 0:01:50]} 19. Rxc6 {[%emt 0:00:07]
} bxc6 {[%emt 0:00:30]} 20. Rxe7 {[%emt 0:00:18]} Nf6 {[%emt 0:00:49]} 21. Be5
{[%emt 0:01:21]} Rae8 {[%emt 0:00:58]} 22. Bxf6 {[%emt 0:00:18]} gxf6 {[%emt 0:
00:00]} 23. Rxe8 {[%emt 0:00:43]} Rxe8 {[%emt 0:00:11]} 24. Qf7 {[%emt 0:00:16]
} Re1+ {[%emt 0:01:55]} 25. Kd2 {[%emt 0:00:06]} Rg1 {[%emt 0:00:17]} 26. Qf8#
{[%emt 0:00:05]} 1-0

[Event "44th Chess Olympiad Women 2022"]
[Site "Chennai"]
[Date "2022.07.31"]
[Round "3.50"]
[White "Garcia, Andrea Nicole"]
[Black "Shuqja, Klean"]
[Result "0-1"]
[WhiteElo "1631"]
[BlackElo "1883"]
[Annotator "NA RC"]
[PlyCount "86"]
[EventDate "2022.??.??"]
[TimeControl "60"]

1. e4 {[%emt 0:00:03]} d5 {[%emt 0:00:03]} 2. exd5 {[%emt 0:00:08]} Qxd5 {
[%emt 0:00:03]} 3. Nc3 {[%emt 0:00:10]} Qd8 {[%emt 0:00:06]} 4. Bc4 {[%emt 0:
00:00]} Nf6 {[%emt 0:00:12]} 5. Nf3 {[%emt 0:00:06]} a6 {[%emt 0:00:13]} 6. Ne5
{[%emt 0:00:24]} e6 {[%emt 0:01:53]} 7. d4 {[%emt 0:00:15]} b5 {[%emt 0:04:51]}
8. Be2 {[%emt 0:00:29]} Bb7 {[%emt 0:06:29]} 9. Bf3 {[%emt 0:00:36]} Nd5 {
[%emt 0:08:53]} 10. Nxd5 {[%emt 0:13:26]} Bxd5 {[%emt 0:03:05]} 11. Bxd5 {
[%emt 0:04:43]} Qxd5 {[%emt 0:01:14]} 12. Qf3 {[%emt 0:16:34]} Qxf3 {[%emt 0:
00:00]} 13. Nxf3 {[%emt 0:00:22]} Be7 {[%emt 0:12:37]} 14. Bf4 {[%emt 0:04:11]}
Nd7 {[%emt 0:04:30]} 15. Rf1 {[%emt 0:22:58]} Rc8 {[%emt 0:04:03]} 16. Ke2 {
[%emt 0:06:07]} c5 {[%emt 0:05:05]} 17. dxc5 {[%emt 0:09:40]} Rxc5 {[%emt 0:00:
00]} 18. Rfc1 {[%emt 0:05:03]} Rc4 {[%emt 0:05:51]} 19. Be3 {[%emt 0:02:41]}
Bf6 {[%emt 0:01:57]} 20. Rab1 {[%emt 0:03:46]} Rc7 {[%emt 0:12:22]} 21. Bg5 {
[%emt 0:02:10]} Ke7 {[%emt 0:06:07]} 22. Bxf6+ {[%emt 0:00:11]} Nxf6 {[%emt 0:
00:00]} 23. c3 {[%emt 0:00:23]} Rhc8 {[%emt 0:00:38]} 24. Rc2 {[%emt 0:03:17]}
Nd5 {[%emt 0:00:43]} 25. a3 {[%emt 0:02:42]} a5 {[%emt 0:02:20]} 26. g3 {
[%emt 0:00:13]} b4 {[%emt 0:01:28]} 27. axb4 {[%emt 0:00:02]} axb4 {[%emt 0:00:
00]} 28. Rbc1 {[%emt 0:02:25]} bxc3 {[%emt 0:00:41]} 29. bxc3 {[%emt 0:00:05]}
Rxc3 {[%emt 0:00:20]} 30. Rxc3 {[%emt 0:00:22]} Rxc3 {[%emt 0:00:20]} 31. Rxc3
{[%emt 0:00:06]} Nxc3+ {[%emt 0:00:01]} 32. Ke3 {[%emt 0:00:16]} f6 {[%emt 0:
00:00]} 33. h4 {[%emt 0:00:34]} e5 {[%emt 0:03:57]} 34. Nd2 {[%emt 0:01:43]}
Ke6 {[%emt 0:01:46]} 35. f4 {[%emt 0:00:47]} Kf5 {[%emt 0:00:47]} 36. fxe5 {
[%emt 0:00:37]} fxe5 {[%emt 0:00:19]} 37. Nf3 {[%emt 0:00:46]} Nd5+ {[%emt 0:
00:00]} 38. Kf2 {[%emt 0:00:25]} e4 {[%emt 0:00:39]} 39. Ne1 {[%emt 0:00:34]}
Kg4 {[%emt 0:00:31]} 40. Ng2 {[%emt 0:00:27]} e3+ {[%emt 0:00:19]} 41. Nxe3+ {
[%emt 0:09:25]} Nxe3 {[%emt 0:01:03]} 42. Kxe3 {[%emt 0:00:02]} Kxg3 {[%emt 0:
00:00]} 43. h5 {[%emt 0:00:07]} h6 {[%emt 0:00:41]} 0-1

[Event "44th Chess Olympiad Women 2022"]
[Site "Chennai"]
[Date "2022.07.31"]
[Round "3.50"]
[White "Maradiaga, Cesia"]
[Black "Gjergji, Rozana"]
[Result "0-1"]
[WhiteElo "1533"]
[BlackElo "1920"]
[Annotator "NA RC"]
[PlyCount "64"]
[EventDate "2022.??.??"]
[TimeControl "60"]

1. Nf3 {[%emt 0:00:06]} Nf6 {[%emt 0:00:10]} 2. b3 {[%emt 0:00:12]} d5 {
[%emt 0:00:30]} 3. Bb2 {[%emt 0:00:23]} e6 {[%emt 0:01:11]} 4. e3 {[%emt 0:00:
00]} Be7 {[%emt 0:00:25]} 5. Be2 {[%emt 0:00:14]} O-O {[%emt 0:00:47]} 6. O-O {
[%emt 0:00:16]} Nbd7 {[%emt 0:01:09]} 7. c4 {[%emt 0:02:41]} dxc4 {[%emt 0:00:
00]} 8. Bxc4 {[%emt 0:04:00]} b6 {[%emt 0:02:55]} 9. d4 {[%emt 0:02:10]} Bb7 {
[%emt 0:01:51]} 10. Nbd2 {[%emt 0:00:42]} Bd6 {[%emt 0:08:09]} 11. g3 {[%emt 0:
00:00]} h6 {[%emt 0:12:53]} 12. Re1 {[%emt 0:04:28]} Re8 {[%emt 0:08:08]} 13.
Bf1 {[%emt 0:10:03]} e5 {[%emt 0:05:20]} 14. e4 {[%emt 0:08:25]} exd4 {[%emt 0:
00:00]} 15. Nxd4 {[%emt 0:12:57]} Nxe4 {[%emt 0:02:46]} 16. Bg2 {[%emt 0:01:15]
} Ndf6 {[%emt 0:07:47]} 17. Nxe4 {[%emt 0:11:52]} Bxe4 {[%emt 0:02:36]} 18.
Bxe4 {[%emt 0:02:59]} Nxe4 {[%emt 0:01:28]} 19. Nf5 {[%emt 0:00:36]} Bc5 {
[%emt 0:04:04]} 20. Qf3 {[%emt 0:16:54]} Bxf2+ {[%emt 0:12:27]} 21. Kg2 {
[%emt 0:00:18]} Bxe1 {[%emt 0:00:14]} 22. Rxe1 {[%emt 0:00:28]} Ng5 {[%emt 0:
00:00]} 23. Rxe8+ {[%emt 0:00:22]} Qxe8 {[%emt 0:00:02]} 24. Qc3 {[%emt 0:00:
00]} Qe4+ {[%emt 0:00:43]} 25. Kf1 {[%emt 0:01:22]} Qxf5+ {[%emt 0:00:04]} 26.
Kg2 {[%emt 0:00:27]} f6 {[%emt 0:00:24]} 27. h4 {[%emt 0:02:02]} Ne4 {[%emt 0:
00:00]} 28. Qc4+ {[%emt 0:01:01]} Kh7 {[%emt 0:00:24]} 29. Bd4 {[%emt 0:00:50]}
c5 {[%emt 0:00:29]} 30. Be3 {[%emt 0:00:07]} Rd8 {[%emt 0:00:32]} 31. Bf4 {
[%emt 0:01:06]} Qd5 {[%emt 0:00:42]} 32. Qf1 {[%emt 0:00:29]} Nd2+ {[%emt 0:00:
00]} 0-1

[Event "44th Chess Olympiad Women 2022"]
[Site "Chennai"]
[Date "2022.07.31"]
[Round "3.50"]
[White "Shabanaj, Eglantina"]
[Black "Viana, Valeria"]
[Result "1-0"]
[WhiteElo "1940"]
[BlackElo "1441"]
[Annotator "NA"]
[PlyCount "55"]
[EventDate "2022.??.??"]
[TimeControl "60"]

1. d4 {[%emt 0:00:02]} Nf6 {[%emt 0:00:10]} 2. Nf3 {[%emt 0:00:17]} d5 {
[%emt 0:00:37]} 3. c4 {[%emt 0:00:20]} c6 {[%emt 0:00:02]} 4. Nbd2 {[%emt 0:00:
00]} Bf5 {[%emt 0:03:04]} 5. g3 {[%emt 0:00:50]} e6 {[%emt 0:01:37]} 6. Bg2 {
[%emt 0:01:42]} Nbd7 {[%emt 0:01:32]} 7. O-O {[%emt 0:01:17]} Be7 {[%emt 0:00:
00]} 8. b3 {[%emt 0:01:10]} h6 {[%emt 0:05:22]} 9. Bb2 {[%emt 0:00:53]} Qc7 {
[%emt 0:02:31]} 10. Rc1 {[%emt 0:03:57]} O-O {[%emt 0:02:22]} 11. Re1 {[%emt 0:
00:00]} Ne4 {[%emt 0:04:17]} 12. Nxe4 {[%emt 0:05:17]} Bxe4 {[%emt 0:00:49]}
13. Nd2 {[%emt 0:02:52]} Bxg2 {[%emt 0:02:01]} 14. Kxg2 {[%emt 0:00:07]} f5 {
[%emt 0:11:41]} 15. Nf3 {[%emt 0:01:48]} Rae8 {[%emt 0:02:20]} 16. Ne5 {
[%emt 0:01:34]} Nxe5 {[%emt 0:04:53]} 17. dxe5 {[%emt 0:00:20]} f4 {[%emt 0:00:
00]} 18. cxd5 {[%emt 0:01:53]} exd5 {[%emt 0:00:43]} 19. Qxd5+ {[%emt 0:01:05]}
Kh8 {[%emt 0:04:07]} 20. Qe4 {[%emt 0:03:53]} Bg5 {[%emt 0:02:44]} 21. Rc2 {
[%emt 0:01:46]} fxg3 {[%emt 0:04:47]} 22. hxg3 {[%emt 0:02:15]} Qf7 {[%emt 0:
00:00]} 23. f4 {[%emt 0:00:32]} Bd8 {[%emt 0:01:34]} 24. Rh1 {[%emt 0:00:49]}
Re6 {[%emt 0:06:06]} 25. e3 {[%emt 0:04:25]} Rg6 {[%emt 0:04:38]} 26. Rf2 {
[%emt 0:01:54]} Rg4 {[%emt 0:02:42]} 27. Rxh6+ {[%emt 0:01:14]} Kg8 {[%emt 0:
00:00]} 28. Qh7# {[%emt 0:00:10]} 1-0

[Event "44th Chess Olympiad Women 2022"]
[Site "Chennai"]
[Date "2022.07.31"]
[Round "3.51"]
[White "Ayele, Hana Mulugeta"]
[Black "Nikolovska, Dragana"]
[Result "0-1"]
[WhiteElo "1437"]
[BlackElo "1876"]
[Annotator "NA RC"]
[PlyCount "62"]
[EventDate "2022.??.??"]
[TimeControl "60"]

1. e4 {[%emt 0:00:04]} c5 {[%emt 0:00:06]} 2. Nf3 {[%emt 0:00:07]} d6 {[%emt 0:
00:00]} 3. Bc4 {[%emt 0:00:18]} Nf6 {[%emt 0:00:29]} 4. Nc3 {[%emt 0:00:34]}
Nc6 {[%emt 0:00:40]} 5. a3 {[%emt 0:00:46]} Bg4 {[%emt 0:05:37]} 6. h3 {
[%emt 0:00:48]} Bxf3 {[%emt 0:04:14]} 7. Qxf3 {[%emt 0:01:20]} Nd4 {[%emt 0:00:
00]} 8. Qd1 {[%emt 0:00:27]} g6 {[%emt 0:02:26]} 9. d3 {[%emt 0:00:30]} Bg7 {
[%emt 0:01:17]} 10. O-O {[%emt 0:00:27]} O-O {[%emt 0:00:56]} 11. Be3 {[%emt 0:
00:00]} Nd7 {[%emt 0:03:06]} 12. Bxd4 {[%emt 0:03:23]} Bxd4 {[%emt 0:00:36]}
13. Qd2 {[%emt 0:03:13]} a6 {[%emt 0:05:48]} 14. Rab1 {[%emt 0:03:18]} b5 {
[%emt 0:06:26]} 15. Bd5 {[%emt 0:03:04]} Rb8 {[%emt 0:01:57]} 16. Ne2 {[%emt 0:
00:00]} Bg7 {[%emt 0:00:36]} 17. c3 {[%emt 0:01:13]} Qb6 {[%emt 0:02:29]} 18.
Nf4 {[%emt 0:03:03]} Bh6 {[%emt 0:03:53]} 19. d4 {[%emt 0:00:56]} e5 {[%emt 0:
00:00]} 20. dxe5 {[%emt 0:03:48]} dxe5 {[%emt 0:00:38]} 21. g3 {[%emt 0:04:32]}
exf4 {[%emt 0:00:39]} 22. gxf4 {[%emt 0:00:13]} Qc7 {[%emt 0:00:49]} 23. f3 {
[%emt 0:03:36]} Bxf4 {[%emt 0:02:17]} 24. Qe2 {[%emt 0:01:12]} Nf6 {[%emt 0:00:
00]} 25. Rf2 {[%emt 0:01:25]} Nxd5 {[%emt 0:01:00]} 26. exd5 {[%emt 0:00:04]}
Rbe8 {[%emt 0:00:33]} 27. Qd3 {[%emt 0:05:16]} Be3 {[%emt 0:00:25]} 28. d6 {
[%emt 0:00:24]} Qd7 {[%emt 0:00:21]} 29. Re1 {[%emt 0:00:47]} Bxf2+ {[%emt 0:
00:00]} 30. Kxf2 {[%emt 0:00:13]} Rxe1 {[%emt 0:04:26]} 31. Kxe1 {[%emt 0:00:
00]} Rd8 {[%emt 0:00:20]} 0-1